[Event "Lviv Tradition January 2019"]
[Site "Lviv"]
[Date "2019.01.30"]
[Round "7"]
[White "Terletsky, Oleg"]
[Black "Shkuran, Danylo"]
[Result "1/2-1/2"]
[ECO "B13"]
[WhiteElo "2197"]
[BlackElo "2359"]
[Annotator "NA"]
[PlyCount "60"]
[EventDate "2019.01.27"]
[EventType "schev"]
[EventCountry "UKR"]
[SourceTitle "playchess.com"]
[Source "ChessBase"]
[SourceQuality "1"]
[TimeControl "5400+30"]

1. e4 {[%emt 0:00:00]} c6 {[%emt 0:00:00]} 2. d4 {[%emt 0:00:00]} d5 {[%emt 0:00:00]} 3. exd5 {[%emt 0:00:00]} cxd5 {[%emt 0:00:00]} 4. Bd3 {[%emt 0:00:00]} Nc6 {[%emt 0:00:09]} 5. c3 {[%emt 0:00:05]} Nf6 {[%emt 0:00:09]} 6. Bf4 {[%emt 0:00:22]} Bg4 {[%emt 0:00:20]} 7. Qb3 {[%emt 0:01:46]} Na5 {[%emt 0:00:41]} 8. Qa4+ {[%emt 0:00:12]} Nc6 {[%emt 0:01:02]} 9. Qb3 {[%emt 0:03:59]} Na5 {[%emt 0:00:18]} 10. Qa4+ {[%emt 0:00:06]} Nc6 {[%emt 0:01:01]} 11. Qb3 {[%emt 0:00:06]} Qd7 {[%emt 0:00:11]} 12. Nd2 {[%emt 0:00:12]} e6 {[%emt 0:00:30]} 13. h3 {[%emt 0:08:04]} Bh5 {[%emt 0:03:24]} 14. Ngf3 {[%emt 0:00:25]} Bxf3 {[%emt 0:00:46]} 15. Nxf3 {[%emt 0:00:06]} a6 {[%emt 0:02:10]} 16. O-O {[%emt 0:02:49]} Be7 {[%emt 0:00:52]} 17. Ne5 {[%emt 0:00:15]} Qc8 {[%emt 0:00:30]} 18. Rfe1 {[%emt 0:01:00]} O-O {[%emt 0:00:40]} 19. Qc2 {[%emt 0:00:30]} g6 {[%emt 0:02:31]} 20. Re3 {[%emt 0:00:26]} Nxe5 {[%emt 0:01:10]} 21. Bxe5 {[%emt 0:00:09]} Nh5 {[%emt 0:00:56]} 22. g4 {[%emt 0:01:13]} Ng7 {[%emt 0:01:34]} 23. Rae1 {[%emt 0:00:06]} Qd8 {[%emt 0:02:26]} 24. Bg3 {[%emt 0:00:42]} Bh4 {[%emt 0:02:16]} 25. f4 {[%emt 0:01:30]} Re8 {[%emt 0:00:59]} 26. Qf2 {[%emt 0:00:54]} Bxg3 {[%emt 0:00:12]} 27. Qxg3 {[%emt 0:00:06]} b5 {[%emt 0:02:22]} 28. a3 {[%emt 0:00:15]} Qb8 {[%emt 0:03:14]} 29. Qf2 {[%emt 0:00:55]} Ra7 {[%emt 0:03:54]} 30. Re5 {[%emt 0:01:35]} Rae7 {[%emt 0:01:51]} 1/2-1/2

[Event "Lviv Tradition January 2019"]
[Site "Lviv"]
[Date "2019.01.30"]
[Round "7"]
[White "Gavrish, Leonid"]
[Black "Sevostianov, Pavel"]
[Result "0-1"]
[ECO "A53"]
[WhiteElo "2149"]
[BlackElo "2258"]
[Annotator "NA"]
[PlyCount "134"]
[EventDate "2019.01.27"]
[EventType "schev"]
[EventCountry "UKR"]
[SourceTitle "playchess.com"]
[Source "ChessBase"]
[SourceQuality "1"]
[TimeControl "5400+30"]

1. d4 {[%emt 0:00:00]} Nf6 {[%emt 0:00:00]} 2. c4 {[%emt 0:00:00]} d6 {[%emt 0:00:15]} 3. Nc3 {[%emt 0:00:00]} Bf5 {[%emt 0:00:13]} 4. f3 {[%emt 0:02:42]} e5 {[%emt 0:01:09]} 5. dxe5 {[%emt 0:01:12]} dxe5 {[%emt 0:00:36]} 6. Qxd8+ {[%emt 0:00:07]} Kxd8 {[%emt 0:00:04]} 7. e4 {[%emt 0:00:12]} Be6 {[%emt 0:00:03]} 8. Bg5 {[%emt 0:02:56]} Nbd7 {[%emt 0:00:29]} 9. O-O-O {[%emt 0:01:26]} Be7 {[%emt 0:01:52]} 10. f4 {[%emt 0:03:40]} exf4 {[%emt 0:01:03]} 11. Bxf4 {[%emt 0:03:07]} c6 {[%emt 0:04:17]} 12. h3 {[%emt 0:04:52]} Nh5 {[%emt 0:02:29]} 13. Bh2 {[%emt 0:01:51]} Bg5+ {[%emt 0:00:58]} 14. Kc2 {[%emt 0:00:10]} Bf4 {[%emt 0:00:23]} 15. Bxf4 {[%emt 0:03:01]} Nxf4 {[%emt 0:03:56]} 16. Nf3 {[%emt 0:00:26]} Ke7 {[%emt 0:03:07]} 17. Nd5+ {[%emt 0:02:39]} cxd5 {[%emt 0:01:06]} 18. cxd5 {[%emt 0:00:08]} Rac8+ {[%emt 0:07:23]} 19. Kb1 {[%emt 0:01:01]} Nc5 {[%emt 0:05:01]} 20. dxe6 {[%emt 0:00:12]} Nfxe6 {[%emt 0:00:32]} 21. e5 {[%emt 0:06:32]} Ne4 {[%emt 0:01:57]} 22. Bb5 {[%emt 0:00:26]} Rc7 {[%emt 0:01:06]} 23. Rhe1 {[%emt 0:02:06]} N4c5 {[%emt 0:01:13]} 24. Nd4 {[%emt 0:03:52]} Nxd4 {[%emt 0:04:36]} 25. Rxd4 {[%emt 0:00:30]} Ne6 {[%emt 0:00:00]} 26. Rc4 {[%emt 0:05:57]} Rd8 {[%emt 0:01:35]} 27. Rxc7+ {[%emt 0:00:33]} Nxc7 {[%emt 0:00:01]} 28. Bc4 {[%emt 0:00:21]} Rd2 {[%emt 0:05:31]} 29. Rc1 {[%emt 0:03:32]} Ne6 {[%emt 0:01:08]} 30. g3 {[%emt 0:00:56]} g6 {[%emt 0:03:44]} 31. a4 {[%emt 0:03:19]} b6 {[%emt 0:00:11]} 32. Ka2 {[%emt 0:05:50]} Rd4 {[%emt 0:00:59]} 33. Ka3 {[%emt 0:04:14]} Nc5 {[%emt 0:02:21]} 34. b4 {[%emt 0:01:43]} Nd3 {[%emt 0:02:34]} 35. Rc3 {[%emt 0:06:22]} Nxe5 {[%emt 0:00:24]} 36. Bb5 {[%emt 0:00:03]} Kd6 {[%emt 0:06:12]} 37. Rc8 {[%emt 0:02:19]} Re4 {[%emt 0:01:06]} 38. Ra8 {[%emt 0:01:52]} Re3+ {[%emt 0:00:21]} 39. Kb2 {[%emt 0:00:51]} a5 {[%emt 0:01:19]} 40. bxa5 {[%emt 0:00:17]} bxa5 {[%emt 0:00:01]} 41. Rxa5 {[%emt 0:00:32]} Rxg3 {[%emt 0:00:01]} 42. Ra8 {[%emt 0:06:21]} Rxh3 {[%emt 0:00:31]} 43. a5 {[%emt 0:00:40]} Kc5 {[%emt 0:00:33]} 44. Rb8 {[%emt 0:00:25]} Nd3+ {[%emt 0:08:53]} 45. Bxd3 {[%emt 0:02:51]} Rxd3 {[%emt 0:00:01]} 46. a6 {[%emt 0:00:13]} Rd7 {[%emt 0:01:41]} 47. Rb7 {[%emt 0:00:09]} Rd8 {[%emt 0:00:10]} 48. a7 {[%emt 0:00:28]} Ra8 {[%emt 0:00:07]} 49. Rxf7 {[%emt 0:00:07]} h5 {[%emt 0:01:53]} 50. Rg7 {[%emt 0:00:12]} Kd4 {[%emt 0:02:22]} 51. Rxg6 {[%emt 0:03:35]} Rxa7 {[%emt 0:00:11]} 52. Rh6 {[%emt 0:00:23]} Ra5 {[%emt 0:01:20]} 53. Kc2 {[%emt 0:00:48]} Ke3 {[%emt 0:00:19]} 54. Re6+ {[%emt 0:05:08]} Kf2 {[%emt 0:00:12]} 55. Kd3 {[%emt 0:01:01]} Ra3+ {[%emt 0:01:03]} 56. Kd4 {[%emt 0:00:23]} h4 {[%emt 0:00:25]} 57. Rh6 {[%emt 0:00:59]} h3 {[%emt 0:00:29]} 58. Ke4 {[%emt 0:00:15]} Kg2 {[%emt 0:00:32]} 59. Kf4 {[%emt 0:00:25]} Rf3+ {[%emt 0:00:49]} 60. Kg4 {[%emt 0:00:16]} Rg3+ {[%emt 0:00:09]} 61. Kf4 {[%emt 0:00:24]} Rg8 {[%emt 0:00:52]} 62. Ra6 {[%emt 0:00:18]} h2 {[%emt 0:05:10]} 63. Ra2+ {[%emt 0:00:10]} Kh3 {[%emt 0:00:28]} 64. Ra3+ {[%emt 0:00:40]} Kh4 {[%emt 0:00:19]} 65. Ra7 {[%emt 0:00:46]} Rg4+ {[%emt 0:01:57]} 66. Ke3 {[%emt 0:00:20]} Kg3 {[%emt 0:00:37]} 67. Ra1 {[%emt 0:00:25]} Rh4 {[%emt 0:00:17] Kd4} 0-1

[Event "Lviv Tradition January 2019"]
[Site "Lviv"]
[Date "2019.01.31"]
[Round "8"]
[White "Boricsev, Oleg"]
[Black "Terletsky, Oleg"]
[Result "0-1"]
[ECO "C44"]
[WhiteElo "2297"]
[BlackElo "2197"]
[Annotator "NA"]
[PlyCount "48"]
[EventDate "2019.01.27"]
[EventType "schev"]
[EventCountry "UKR"]
[SourceTitle "playchess.com"]
[Source "ChessBase"]
[SourceQuality "1"]
[TimeControl "5400+30"]

1. e4 {[%emt 0:00:00]} e5 {[%emt 0:00:00]} 2. Nf3 {[%emt 0:00:03]} Nc6 {[%emt 0:00:00]} 3. g3 {[%emt 0:00:05]} Nf6 {[%emt 0:00:13]} 4. Nc3 {[%emt 0:00:05]} d5 {[%emt 0:00:20]} 5. exd5 {[%emt 0:00:06]} Nxd5 {[%emt 0:00:04]} 6. Bg2 {[%emt 0:00:12]} Nxc3 {[%emt 0:00:09]} 7. bxc3 {[%emt 0:00:08]} Bg4 {[%emt 0:00:08] C47: Scotch Four Knights and Four Knights with 4 g3} (7... Bd6 8. O-O O-O 9. d4 h6 10. Re1 Qf6 11. Nd2 Bf5 12. Ne4 Qg6 13. h4 h5 14. Rb1 Rab8 15. Bf3 Bg4 16. Bxg4 Qxg4 17. Qd3 exd4 {½-½ (31) Mamedov,R (2699)-Grandelius,N (2655) Porto Carras 2018}) 8. h3 {[%emt 0:00:12]} Be6 {[%emt 0:00:07]} 9. Qe2 {[%emt 0:01:48]} f6 $146 {[%emt 0:14:30]} ({Predecessor:} 9... Bd6 10. O-O O-O 11. d3 f6 12. Re1 Qd7 13. Kh2 Rfe8 14. Be3 Na5 15. d4 {½-½ (34) Mitura,K (2017)-Sohr,V (2142) Czechia 2009}) 10. Rb1 {[%emt 0:07:59]} Bc5 {[%emt 0:02:39]} 11. Rxb7 {[%emt 0:14:43]} Bb6 {[%emt 0:01:38]} 12. Ba3 {[%emt 0:04:11]} (12. Ng5 $5 Bd5 13. Ne6 $14) 12... Na5 {[%emt 0:04:50]} 13. Nxe5 {[%emt 0:01:09]} fxe5 {[%emt 0:02:37]} 14. Qxe5 {[%emt 0:00:31]} Kf7 {[%emt 0:00:51]} 15. O-O {[%emt 0:10:52]} Nxb7 {[%emt 0:00:38]} 16. Bxb7 {[%emt 0:00:06]} Rb8 {[%emt 0:03:03]} 17. Bc6 {[%emt 0:06:53]} Qf6 {[%emt 0:00:28]} 18. Qe4 {[%emt 0:01:16]} Qf5 {[%emt 0:00:49]} 19. Qh4 {[%emt 0:00:47]} Rhd8 {[%emt 0:15:19]} 20. d4 {[%emt 0:02:41]} Bd5 {[%emt 0:07:58]} 21. Bxd5+ $19 {[%emt 0:03:25]} Rxd5 {[%emt 0:02:30]} 22. Re1 {[%emt 0:01:28]} Kg8 {[%emt 0:00:06]} 23. Qe7 {[%emt 0:07:05]} Qxh3 {[%emt 0:01:07]} 24. Re4 {[%emt 0:02:13]} Rh5 {[%emt 0:00:41]} 0-1

[Event "Lviv Tradition January 2019"]
[Site "Lviv"]
[Date "2019.01.31"]
[Round "8"]
[White "Sevostianov, Pavel"]
[Black "Shkuran, Danylo"]
[Result "1/2-1/2"]
[ECO "B33"]
[WhiteElo "2258"]
[BlackElo "2359"]
[Annotator "RC"]
[PlyCount "66"]
[EventDate "2019.01.27"]
[EventType "schev"]
[EventCountry "UKR"]
[SourceTitle "playchess.com"]
[Source "ChessBase"]
[SourceQuality "1"]
[TimeControl "5400+30"]

1. e4 {[%emt 0:00:00]} c5 {[%emt 0:11:06]} 2. Nf3 {[%emt 0:00:00]} Nc6 {[%emt 0:00:02]} 3. d4 {[%emt 0:00:00]} cxd4 {[%emt 0:00:02]} 4. Nxd4 {[%emt 0:00:00]} Nf6 {[%emt 0:00:03]} 5. Nc3 {[%emt 0:00:00]} e5 {[%emt 0:00:02]} 6. Ndb5 {[%emt 0:00:00]} d6 {[%emt 0:00:02]} 7. Bg5 {[%emt 0:00:00]} a6 {[%emt 0:00:02]} 8. Na3 {[%emt 0:00:00]} b5 {[%emt 0:00:02]} 9. Nd5 {[%emt 0:00:00]} Be7 {[%emt 0:00:02]} 10. Bxf6 {[%emt 0:11:03]} Bxf6 {[%emt 0:01:57]} 11. c3 {[%emt 0:00:32]} Bg5 {[%emt 0:00:28]} 12. Nc2 {[%emt 0:01:19]} O-O {[%emt 0:00:30]} 13. a4 {[%emt 0:00:06]} bxa4 {[%emt 0:00:12]} 14. Rxa4 {[%emt 0:10:30]} a5 {[%emt 0:03:18]} 15. Bc4 {[%emt 0:03:35]} Rb8 {[%emt 0:01:46]} 16. b3 {[%emt 0:02:28]} Kh8 {[%emt 0:03:33]} 17. Nce3 {[%emt 0:01:18]} Be6 {[%emt 0:02:23]} 18. O-O {[%emt 0:01:09]} g6 {[%emt 0:01:54]} 19. Qf3 {[%emt 0:08:49]} f5 {[%emt 0:02:47]} 20. Rd1 {[%emt 0:02:47]} Qd7 {[%emt 0:03:35]} 21. h3 {[%emt 0:06:50]} Qf7 {[%emt 0:08:05]} 22. Rd2 {[%emt 0:00:18]} Bd8 {[%emt 0:01:58]} 23. Rb2 {[%emt 0:15:55]} Qd7 {[%emt 0:08:30]} 24. Ra1 {[%emt 0:11:25]} Qf7 {[%emt 0:07:03]} 25. Rd2 {[%emt 0:00:07]} Bg5 {[%emt 0:00:32]} 26. Raa2 {[%emt 0:00:16]} Qg7 {[%emt 0:11:46]} 27. Rd1 {[%emt 0:07:56]} Bd8 {[%emt 0:00:43]} 28. Nf1 {[%emt 0:00:16]} Ne7 {[%emt 0:00:10]} 29. Nxe7 {[%emt 0:00:02]} Qxe7 {[%emt 0:00:06]} 30. Bxe6 {[%emt 0:00:02]} Qxe6 {[%emt 0:00:04]} 31. c4 {[%emt 0:00:01]} Bb6 {[%emt 0:00:09]} 32. exf5 {[%emt 0:00:02]} Rxf5 {[%emt 0:00:22]} 33. Qd3 {[%emt 0:13:01]} Bd4 {[%emt 0:00:03]} 1/2-1/2

[Event "Lviv Tradition January 2019"]
[Site "Lviv"]
[Date "2019.01.31"]
[Round "8"]
[White "Taranenko, Evgueniy"]
[Black "Kyrychenko, Maryan"]
[Result "1-0"]
[ECO "B51"]
[WhiteElo "2218"]
[BlackElo "2207"]
[Annotator "NA"]
[PlyCount "73"]
[EventDate "2019.01.27"]
[EventType "schev"]
[EventCountry "UKR"]
[SourceTitle "playchess.com"]
[Source "ChessBase"]
[SourceQuality "1"]
[TimeControl "5400+30"]

1. e4 {[%emt 0:01:20]} c5 {[%emt 0:00:00]} 2. Nf3 {[%emt 0:00:04]} d6 {[%emt 0:00:00]} 3. Bb5+ {[%emt 0:00:07]} Nd7 {[%emt 0:00:00]} 4. d4 {[%emt 0:01:38]} a6 {[%emt 0:00:01]} 5. Bxd7+ {[%emt 0:04:33]} Bxd7 {[%emt 0:00:10]} 6. O-O {[%emt 0:00:16]} cxd4 {[%emt 0:00:05]} 7. Qxd4 {[%emt 0:00:20]} Rc8 {[%emt 0:00:25]} 8. Nc3 {[%emt 0:03:22]} e5 {[%emt 0:05:08]} 9. Qd3 {[%emt 0:01:14]} h6 {[%emt 0:00:13]} 10. Rd1 {[%emt 0:04:01] LiveBook: 14 Games} Nf6 {[%emt 0:00:21]} 11. Nd2 {[%emt 0:03:08]} Be6 {[%emt 0:02:51]} 12. Nf1 {[%emt 0:01:19]} Be7 {[%emt 0:09:51]} 13. Qg3 {[%emt 0:06:53]} g5 {[%emt 0:14:58]} 14. Qd3 {[%emt 0:08:07]} Rc4 {[%emt 0:10:06]} 15. Be3 {[%emt 0:05:28]} Qc8 {[%emt 0:04:31]} 16. Nd2 {[%emt 0:12:52]} Rc7 {[%emt 0:02:11]} 17. a4 {[%emt 0:01:29]} Rd7 {[%emt 0:07:10]} 18. Nd5 {[%emt 0:08:54]} Bxd5 {[%emt 0:04:40]} 19. exd5 {[%emt 0:00:02]} Nh5 {[%emt 0:04:33]} 20. c4 {[%emt 0:01:47]} Rd8 {[%emt 0:01:43]} ({Black should try} 20... O-O) 21. Rac1 {[%emt 0:03:46]} Nf4 {[%emt 0:00:22]} 22. Bxf4 {[%emt 0:00:27]} gxf4 {[%emt 0:00:01]} 23. b4 {[%emt 0:02:19]} Qg4 {[%emt 0:00:58]} 24. f3 {[%emt 0:05:16]} Qh5 $2 {[%emt 0:01:22]} (24... Qg6 $16 {is a better defense.} 25. Qxg6 fxg6) 25. c5 {[%emt 0:01:08]} Rg8 {[%emt 0:00:33]} 26. Nb3 {[%emt 0:06:22]} Bh4 {[%emt 0:01:10]} 27. c6 {[%emt 0:03:44]} Ke7 {[%emt 0:03:05]} 28. Rd2 {[%emt 0:01:14]} b6 {[%emt 0:01:24]} 29. Re2 {[%emt 0:01:58]} f5 {[%emt 0:03:25]} 30. Nd2 {[%emt 0:00:21]} Kf7 {[%emt 0:01:08]} (30... Ra8 $142 31. Nc4 Bg3) 31. Kh1 {[%emt 0:01:57]} a5 {[%emt 0:01:33]} 32. Nc4 $18 {[%emt 0:01:15]} Bg3 {[%emt 0:01:39]} 33. h3 {[%emt 0:00:03]} Rg6 {[%emt 0:00:31]} 34. c7 {[%emt 0:00:37]} Rdg8 {[%emt 0:00:01]} 35. Nxd6+ {[%emt 0:01:52]} Rxd6 {[%emt 0:00:07]} 36. c8=Q {[%emt 0:00:02]} Rxc8 {[%emt 0:00:05]} 37. Rxc8 {[%emt 0:00:02]} 1-0

[Event "Lviv Tradition January 2019"]
[Site "Lviv"]
[Date "2019.01.31"]
[Round "8"]
[White "Siniauski, Artsiom"]
[Black "Prydun, Andriy"]
[Result "1/2-1/2"]
[ECO "B11"]
[WhiteElo "2182"]
[BlackElo "2218"]
[Annotator "NA"]
[PlyCount "66"]
[EventDate "2019.01.27"]
[EventType "schev"]
[EventCountry "UKR"]
[SourceTitle "playchess.com"]
[Source "ChessBase"]
[SourceQuality "1"]
[TimeControl "5400+30"]

{[%evp 9,55,0,10,-4,0,2,32767,0,32767,-17,0,-33,-14,-45,13,32767,34,8,16,-6,0,0,20,32767,0,-37,32767,32767,32767,32767,32767,32767,32767,32767,32767,32767,32767,32767,32767,-116,-133,32767,32767,32767,0,32767,0,-108]} 1. e4 {[%emt 0:00:00]} c6 {[%emt 0:01:56]} 2. Nc3 {[%emt 0:00:00]} d5 {[%emt 0:00:26]} 3. Nf3 {[%emt 0:00:06]} Bg4 {[%emt 0:00:11]} 4. h3 {[%emt 0:00:06]} Bxf3 {[%emt 0:00:07]} 5. Qxf3 {[%emt 0:00:05]} e6 {[%emt 0:00:07]} 6. a3 {[%emt 0:00:05]} Nf6 {[%emt 0:03:14]} 7. d3 {[%emt 0:00:15]} Nbd7 {[%emt 0:00:35]} 8. g3 {[%emt 0:01:10]} d4 {[%emt 0:10:41]} 9. Ne2 {[%emt 0:09:57]} Qa5+ {[%emt 0:01:15]} 10. Bd2 {[%emt 0:00:31]} Qb6 {[%emt 0:00:07]} 11. b3 {[%emt 0:02:17]} Ne5 {[%emt 0:02:59]} 12. Qg2 {[%emt 0:01:41]} Ned7 {[%emt 0:03:15]} 13. f4 {[%emt 0:02:14]} a5 {[%emt 0:06:25]} 14. e5 {[%emt 0:02:25]} Nd5 {[%emt 0:00:09]} 15. Qe4 {[%emt 0:00:28]} a4 {[%emt 0:02:46]} 16. b4 $1 {[%emt 0:02:29]} c5 {[%emt 0:02:27]} 17. bxc5 {[%emt 0:00:41]} Bxc5 {[%emt 0:08:47]} 18. Bg2 {[%emt 0:02:43]} Qb2 {[%emt 0:07:58]} 19. O-O {[%emt 0:00:52]} Qxc2 {[%emt 0:00:16]} 20. Bb4 {[%emt 0:00:28]} Ne3 {[%emt 0:11:06]} 21. Rac1 {[%emt 0:17:28]} Qxe2 {[%emt 0:00:37]} 22. Rf2 {[%emt 0:00:10]} Qh5 {[%emt 0:01:57]} 23. Rxc5 {[%emt 0:00:31]} Qd1+ {[%emt 0:08:59]} 24. Kh2 {[%emt 0:01:25] [#]} h5 $1 {[%emt 0:03:14]} ({Stronger than} 24... Nxc5 25. Qxd4 O-O 26. Qxe3 $16) 25. g4 {[%emt 0:13:42]} Nxg4+ {[%emt 0:14:56]} 26. hxg4 {[%emt 0:00:10]} hxg4+ {[%emt 0:00:04]} 27. Kg3 {[%emt 0:00:08]} Qg1 {[%emt 0:01:26] [#]} 28. Rf1 $17 {[%emt 0:05:37]} (28. Rfc2 $1 $11 {[%mdl 512] keeps the balance.} Qh2+ 29. Kf2 Nxc5 30. Bxc5) 28... Rh3+ {[%emt 0:01:35]} 29. Kxg4 {[%emt 0:00:06]} Qh2 {[%emt 0:00:03]} 30. Bxh3 {[%emt 0:02:30]} f5+ {[%emt 0:00:17]} 31. exf6 {[%emt 0:00:07]} Nxf6+ {[%emt 0:00:04]} 32. Kh4 {[%emt 0:00:07]} Nxe4 {[%emt 0:00:20]} 33. dxe4 {[%emt 0:00:09]} Kf7 {[%emt 0:05:16]} 1/2-1/2

[Event "Lviv Tradition January 2019"]
[Site "Lviv"]
[Date "2019.01.31"]
[Round "8"]
[White "Gavrish, Leonid"]
[Black "Kagramanianz, Vartan"]
[Result "1/2-1/2"]
[ECO "B07"]
[WhiteElo "2149"]
[BlackElo "2246"]
[Annotator "NA"]
[PlyCount "90"]
[EventDate "2019.01.27"]
[EventType "schev"]
[EventCountry "UKR"]
[SourceTitle "playchess.com"]
[Source "ChessBase"]
[SourceQuality "1"]
[TimeControl "5400+30"]

1. d4 {[%emt 0:06:04]} d6 {[%emt 0:00:00]} 2. e4 {[%emt 0:00:08]} Nf6 {[%emt 0:00:00]} 3. Nc3 {[%emt 0:00:05]} e5 {[%emt 0:00:00]} 4. dxe5 {[%emt 0:00:29]} dxe5 {[%emt 0:00:00]} 5. Qxd8+ {[%emt 0:00:03]} Kxd8 {[%emt 0:00:02]} 6. Bc4 {[%emt 0:00:08]} Bb4 {[%emt 0:00:47]} 7. Bd2 {[%emt 0:00:41]} Be6 {[%emt 0:04:15]} 8. Bxe6 {[%emt 0:01:00]} fxe6 {[%emt 0:00:08]} 9. Nf3 {[%emt 0:05:13]} Nc6 {[%emt 0:01:37]} 10. a3 {[%emt 0:09:33]} Bc5 {[%emt 0:02:38]} 11. Rd1 {[%emt 0:04:11]} Ke7 {[%emt 0:04:42]} 12. O-O {[%emt 0:01:08]} a6 {[%emt 0:06:41]} 13. h3 {[%emt 0:00:59]} Rad8 {[%emt 0:02:22]} 14. Bg5 {[%emt 0:05:05]} h6 {[%emt 0:07:26]} 15. Bh4 {[%emt 0:04:28]} g5 {[%emt 0:00:25]} 16. Bg3 {[%emt 0:00:10]} Bd6 {[%emt 0:00:03]} 17. Rd2 {[%emt 0:05:27]} Nh5 {[%emt 0:03:52]} 18. Bh2 {[%emt 0:00:08]} Nf4 {[%emt 0:01:27]} 19. Bxf4 {[%emt 0:00:29]} exf4 {[%emt 0:00:33]} 20. Rfd1 {[%emt 0:00:45]} Ne5 {[%emt 0:04:46]} 21. Nxe5 {[%emt 0:00:36]} Bxe5 {[%emt 0:00:06]} 22. Rxd8 {[%emt 0:00:11]} Rxd8 {[%emt 0:00:07]} 23. Rxd8 {[%emt 0:00:06]} Kxd8 {[%emt 0:00:05]} 24. Nd1 {[%emt 0:00:12]} Kd7 {[%emt 0:02:37]} 25. Kf1 {[%emt 0:00:08]} c5 {[%emt 0:01:39]} 26. Ke2 {[%emt 0:00:54]} c4 {[%emt 0:00:33]} 27. f3 {[%emt 0:08:03]} Bd4 {[%emt 0:05:13]} 28. Kd2 {[%emt 0:00:48]} Kd6 {[%emt 0:00:52]} 29. Ke2 {[%emt 0:00:36]} b5 {[%emt 0:02:15]} 30. Kd2 {[%emt 0:00:35]} Kc5 {[%emt 0:01:07]} 31. b4+ {[%emt 0:06:09]} Kd6 {[%emt 0:04:58]} 32. c3 {[%emt 0:03:42]} Bb6 {[%emt 0:02:41]} 33. Ke2 {[%emt 0:06:47]} Ke5 {[%emt 0:07:55]} 34. a4 {[%emt 0:03:08]} Kf6 {[%emt 0:09:34]} 35. a5 {[%emt 0:00:00]} Ba7 {[%emt 0:00:04]} 36. Nf2 {[%emt 0:02:39]} Bxf2 {[%emt 0:10:28]} 37. Kxf2 {[%emt 0:00:03]} Kg6 {[%emt 0:00:16]} 38. g4 {[%emt 0:08:55]} fxg3+ {[%emt 0:00:29]} 39. Kxg3 $11 {[%emt 0:00:02]} e5 {[%emt 0:01:11]} 40. Kg4 {[%emt 0:00:23]} Kf6 {[%emt 0:00:10]} 41. Kg3 {[%emt 0:12:41]} Kg7 {[%emt 0:00:24]} 42. Kf2 {[%emt 0:00:30]} Kg6 {[%emt 0:00:06]} 43. Kg2 {[%emt 0:00:14]} Kh5 {[%emt 0:00:10]} 44. Kg3 {[%emt 0:00:10]} Kg6 45. Kg4 Kf6 1/2-1/2

[Event "Lviv Tradition January 2019"]
[Site "Lviv"]
[Date "2019.02.01"]
[Round "9"]
[White "Terletsky, Oleg"]
[Black "Siniauski, Artsiom"]
[Result "1/2-1/2"]
[ECO "A16"]
[WhiteElo "2197"]
[BlackElo "2182"]
[Annotator "RC"]
[PlyCount "60"]
[EventDate "2019.01.27"]
[EventType "schev"]
[EventCountry "UKR"]
[SourceTitle "playchess.com"]
[Source "ChessBase"]
[SourceQuality "1"]
[TimeControl "5400+30"]

1. c4 {[%emt 0:00:00]} Nf6 {[%emt 0:00:00]} 2. Nc3 {[%emt 0:00:00]} d5 {[%emt 0:00:00]} 3. cxd5 {[%emt 0:00:00]} Nxd5 {[%emt 0:00:00]} 4. e4 {[%emt 0:04:16]} Nxc3 {[%emt 0:00:04]} 5. dxc3 {[%emt 0:00:28]} Qxd1+ {[%emt 0:01:54]} 6. Kxd1 {[%emt 0:00:46]} e5 {[%emt 0:01:42]} 7. Be3 {[%emt 0:01:02]} Be6 {[%emt 0:00:20]} 8. Kc2 {[%emt 0:01:50]} Nd7 {[%emt 0:00:43]} 9. Nf3 {[%emt 0:00:16]} f6 {[%emt 0:00:09]} 10. Nd2 {[%emt 0:01:03]} a5 {[%emt 0:02:14]} 11. Bc4 {[%emt 0:00:20]} Bxc4 {[%emt 0:00:24]} 12. Nxc4 {[%emt 0:00:02]} b5 {[%emt 0:00:45]} 13. Nd2 {[%emt 0:00:11]} Bc5 {[%emt 0:00:13]} 14. Bxc5 {[%emt 0:07:37]} Nxc5 {[%emt 0:00:07]} 15. f3 {[%emt 0:00:02]} Ke7 {[%emt 0:00:23]} 16. Nf1 {[%emt 0:01:44]} Rhd8 {[%emt 0:02:23]} 17. Ne3 {[%emt 0:00:12]} c6 {[%emt 0:00:16]} 18. Rhd1 {[%emt 0:00:25]} g6 {[%emt 0:00:27]} 19. Rxd8 {[%emt 0:02:27]} Rxd8 {[%emt 0:00:08]} 20. Rd1 {[%emt 0:00:04]} Rxd1 {[%emt 0:00:55]} 21. Nxd1 {[%emt 0:00:17]} Ke6 {[%emt 0:01:28]} 22. Nf2 {[%emt 0:00:25]} Ke7 {[%emt 0:01:02]} 23. Nd3 {[%emt 0:01:47]} Nxd3 {[%emt 0:00:55]} 24. Kxd3 {[%emt 0:00:02]} Kd6 {[%emt 0:00:11]} 25. b3 {[%emt 0:00:31]} Kc5 {[%emt 0:00:19]} 26. a3 {[%emt 0:00:12]} Kd6 {[%emt 0:00:37]} 27. b4 {[%emt 0:00:08]} a4 {[%emt 0:00:08]} 28. Ke3 {[%emt 0:00:44]} Ke6 {[%emt 0:00:16]} 29. g3 {[%emt 0:00:04]} Kd6 {[%emt 0:00:12]} 30. Kd3 {[%emt 0:00:05]} Ke6 1/2-1/2